fUSD/lending_fUSD_20250702
["ID","MTS","AMOUNT","RATE_DAILY","PERIOD"]
[369031848,1751439042428,-490.0,0.00016596,2]
[369031849,1751439042437,-490.0,0.00016596,2]
[369031850,1751439042447,-490.0,0.00016596,2]
[369031851,1751439042456,-490.0,0.00016596,2]
[369031852,1751439042465,-490.0,0.00016596,2]
[369031853,1751439042474,-490.0,0.00016596,2]
[369031854,1751439042484,-490.0,0.00016596,2]
[369031855,1751439042493,-490.0,0.00016596,2]
[369031856,1751439042503,-524.04746253,0.00016596,2]
[369031857,1751439042514,-490.0,0.00016596,2]
[369031858,1751439042523,-490.0,0.00016596,2]
[369031859,1751439042533,-490.0,0.00016596,2]
[369031860,1751439042543,-490.0,0.00016596,2]
[369031861,1751439042553,-490.0,0.00016596,2]
[369031862,1751439042562,-490.0,0.00016596,2]
[369031863,1751439042571,-490.0,0.00016596,2]
[369031864,1751439042581,-490.0,0.00016596,2]
[369031865,1751439042591,-500.0,0.00016596,2]
[369031866,1751439042601,-293.89689975,0.00016596,2]
[369031867,1751439042610,-490.0,0.00016596,2]
[369031868,1751439042620,-490.0,0.00016596,2]
[369031869,1751439042630,-490.0,0.00016596,2]
[369031870,1751439042639,-490.0,0.00016596,2]
[369031871,1751439042649,-490.0,0.00016596,2]
[369031872,1751439042659,-490.0,0.00016596,2]
[369031873,1751439042668,-276.34651089,0.00016596,2]
[369031875,1751439042677,-498.7,0.00016596,2]
[369031876,1751439042687,-490.0,0.00016596,2]
[369031877,1751439042698,-490.0,0.00016596,2]
[369031878,1751439042707,-490.0,0.00016596,2]
[369031879,1751439042717,-221.79779011,0.00016596,2]
[369031880,1751439042727,-490.0,0.00016596,2]
[369031881,1751439042737,-490.0,0.00016596,2]
[369031882,1751439042746,-490.0,0.00016596,2]
[369031883,1751439042756,-490.0,0.00016596,2]
[369031884,1751439042766,-543.16,0.00016596,2]
[369031885,1751439042775,-490.0,0.00016596,2]
[369031886,1751439042784,-490.0,0.00016596,2]
[369031887,1751439042794,-490.0,0.00016596,2]
[369031888,1751439042804,-490.0,0.00016596,2]
[369031889,1751439042814,-988.21,0.00016596,2]
[369031890,1751439042824,-490.0,0.00016596,2]
[369031891,1751439042834,-490.0,0.00016596,2]
[369031892,1751439042843,-590.0,0.00016596,2]
[369031893,1751439042853,-490.0,0.00016596,2]
[369031894,1751439042863,-490.0,0.00016596,2]
[369031895,1751439042873,-490.0,0.00016596,2]
[369031896,1751439042884,-490.0,0.00016596,2]
[369031897,1751439042893,-490.0,0.00016596,2]
[369031898,1751439042903,-543.9,0.00016596,2]
[369031899,1751439042914,-572.378441,0.00016596,2]
[369031900,1751439042924,-490.0,0.00016596,2]
[369031901,1751439043077,-490.0,0.00016596,2]
[369031902,1751439043104,-645.17,0.00016596,2]
[369031903,1751439043114,-490.0,0.00016596,2]
[369031904,1751439043126,-1339.32,0.00016596,2]
[369031905,1751439043135,-490.0,0.00016596,2]
[369031906,1751439043144,-490.0,0.00016596,2]
[369031907,1751439043153,-590.73,0.00016596,2]
[369031908,1751439043163,-490.0,0.00016596,2]
[369031909,1751439043172,-490.0,0.00016596,2]
[369031910,1751439043181,-554.12,0.00016596,2]
[369031912,1751439043191,-490.0,0.00016596,2]
[369031914,1751439043202,-490.0,0.00016596,2]
[369031915,1751439043211,-458.0804916,0.00016596,2]
[369031917,1751439043221,-490.0,0.00016596,2]
[369031918,1751439043230,-1040.13,0.00016596,2]
[369031919,1751439043240,-490.0,0.00016596,2]
[369031920,1751439043253,-636.14198772,0.00016596,2]
[369031921,1751439043263,-377.40950394,0.00016596,2]
[369031922,1751439043272,-490.0,0.00016596,2]
[369031923,1751439043282,-526.37,0.00016596,2]
[369031924,1751439043292,-671.04,0.00016596,2]
[369031925,1751439043301,-762.34,0.00016596,2]
[369031926,1751439043311,-490.0,0.00016596,2]
[369031927,1751439043320,-490.0,0.00016596,2]
[369031928,1751439043330,-652.15,0.00016596,2]
[369031930,1751439043340,-491.627763,0.00016596,2]
[369031932,1751439043350,-490.0,0.00016596,2]
[369031935,1751439043367,-565.5,0.00016596,2]
[369031937,1751439043376,-490.0,0.00016596,2]
[369031938,1751439043385,-490.0,0.00016596,2]
[369031940,1751439043394,-490.0,0.00016596,2]
[369031942,1751439043403,-490.0,0.00016596,2]
[369031944,1751439043412,-490.0,0.00016596,2]
[369031946,1751439043421,-490.0,0.00016596,2]
[369031948,1751439043431,-490.0,0.00016596,2]
[369031949,1751439043440,-324.09024548,0.00016596,2]
[369031950,1751439043449,-1224.6,0.00016596,2]
[369031951,1751439043459,-490.0,0.00016596,2]
[369031952,1751439043468,-490.0,0.00016596,2]
[369031953,1751439043477,-490.0,0.00016596,2]
[369031954,1751439043487,-492.60617532,0.00016596,2]
[369031955,1751439043496,-490.0,0.00016596,2]
[369031956,1751439043506,-490.0,0.00016596,2]
[369031957,1751439043515,-490.0,0.00016596,2]
[369031958,1751439043525,-490.0,0.00016596,2]
[369031959,1751439043535,-490.0,0.00016596,2]
[369031960,1751439043545,-490.0,0.00016596,2]
[369031961,1751439043554,-490.0,0.00016596,2]
[369031962,1751439043564,-490.0,0.00016596,2]
[369031963,1751439043573,-490.0,0.00016596,2]
[369031964,1751439043582,-234.31349547,0.00016596,2]
[369031965,1751439043592,-1292.69,0.00016596,2]
[369031966,1751439043601,-490.0,0.00016596,2]
[369031967,1751439043611,-490.0,0.00016596,2]
[369031968,1751439043620,-490.0,0.00016596,2]
[369031969,1751439043630,-895.09,0.00016596,2]
[369031970,1751439043639,-970.61,0.00016596,2]
[369031971,1751439043649,-231.20866581,0.00016596,2]
[369031972,1751439043658,-1070.07,0.00016596,2]
[369031973,1751439043668,-490.0,0.00016596,2]
[369031974,1751439043677,-490.0,0.00016596,2]
[369031975,1751439043686,-490.0,0.00016596,2]
[369031976,1751439043696,-490.0,0.00016596,2]
[369031977,1751439043705,-490.0,0.00016596,2]
[369031978,1751439043715,-491.67916601,0.00016596,2]
[369031979,1751439043724,-574.82,0.00016596,2]
[369031980,1751439043734,-490.0,0.00016596,2]
[369031981,1751439043743,-490.0,0.00016596,2]
[369031982,1751439043752,-490.0,0.00016596,2]
[369031983,1751439043762,-490.0,0.00016596,2]
[369031984,1751439043771,-627.0,0.00016596,2]
[369031985,1751439043780,-490.0,0.00016596,2]
[369031986,1751439043790,-490.0,0.00016596,2]
[369031987,1751439043799,-490.0,0.00016596,2]
[369031988,1751439043809,-638.06,0.00016596,2]
[369031989,1751439043819,-510.6385545,0.00016596,2]
[369031990,1751439043828,-490.0,0.00016596,2]
[369031991,1751439043838,-490.0,0.00016596,2]
[369031992,1751439043848,-490.0,0.00016596,2]
[369031993,1751439043857,-490.0,0.00016596,2]
[369031994,1751439043866,-1051.32,0.00016596,2]
[369031995,1751439043876,-490.0,0.00016596,2]
[369031996,1751439043885,-490.0,0.00016596,2]
[369031997,1751439043894,-1269.93,0.00016596,2]
[369031998,1751439043903,-390.80386107,0.00016596,2]
[369031999,1751439043913,-1157.58,0.00016596,2]
[369032000,1751439043922,-490.0,0.00016596,2]
[369032001,1751439043932,-1992.37,0.00016596,2]
[369032002,1751439043941,-490.0,0.00016596,2]
[369032003,1751439043951,-490.0,0.00016596,2]
[369032004,1751439043959,-1125.72,0.00016596,2]
[369032005,1751439043969,-493.33,0.00016596,2]
[369032006,1751439043978,-490.0,0.00016596,2]
[369032007,1751439043987,-1790.98,0.00016596,2]
[369032008,1751439043997,-490.0,0.00016596,2]
[369032009,1751439044006,-1687.18,0.00016596,2]
[369032010,1751439044016,-490.0,0.00016596,2]
[369032011,1751439044026,-973.52,0.00016596,2]
[369032012,1751439044036,-958.58,0.00016596,2]
[369032013,1751439044045,-490.0,0.00016596,2]
[369032014,1751439044054,-490.0,0.00016596,2]
[369032015,1751439044064,-490.0,0.00016596,2]
[369032016,1751439044074,-1207.28,0.00016596,2]
[369032017,1751439044083,-490.0,0.00016596,2]
[369032018,1751439044092,-490.0,0.00016596,2]
[369032019,1751439044103,-1424.82,0.00016596,2]
[369032020,1751439044113,-490.0,0.00016596,2]
[369032021,1751439044125,-2056.11,0.00016596,2]
[369032022,1751439044134,-1164.66,0.00016596,2]
[369032023,1751439044144,-490.0,0.00016596,2]
[369032024,1751439044157,-490.0,0.00016596,2]
[369032025,1751439044166,-490.0,0.00016596,2]
[369032026,1751439044176,-490.0,0.00016596,2]
[369032027,1751439044185,-490.0,0.00016596,2]
[369032028,1751439044195,-490.0,0.00016596,2]
[369032029,1751439044205,-490.0,0.00016596,2]
[369032030,1751439044214,-3029.42,0.00016596,2]
[369032031,1751439044223,-1483.4,0.00016596,2]
[369032032,1751439044232,-490.0,0.00016596,2]
[369032033,1751439044241,-1309.88,0.00016596,2]
[369032034,1751439044250,-546.7,0.00016596,2]
[369032035,1751439044259,-490.0,0.00016596,2]
[369032036,1751439044268,-490.0,0.00016596,2]
[369032037,1751439044277,-552.3,0.00016596,2]
[369032038,1751439044286,-490.0,0.00016596,2]
[369032039,1751439044295,-490.0,0.00016596,2]
[369032040,1751439044305,-629.98618536,0.00016596,2]
[369032041,1751439044314,-500.0,0.00016596,2]
[369032042,1751439044323,-500.0,0.00016596,2]
[369032043,1751439044332,-500.0,0.00016596,2]
[369032044,1751439044341,-2629.88,0.00016596,2]
[369032045,1751439044350,-542.4,0.00016596,2]
[369032046,1751439044360,-490.0,0.00016596,2]
[369032047,1751439044369,-490.0,0.00016596,2]
[369032048,1751439044378,-912.42,0.00016596,2]
[369032049,1751439044387,-490.0,0.00016596,2]
[369032050,1751439044396,-3859.22,0.00016596,2]
[369032051,1751439044406,-490.0,0.00016596,2]
[369032052,1751439044415,-2793.47,0.00016596,2]
[369032053,1751439044425,-490.0,0.00016596,2]
[369032054,1751439044434,-490.0,0.00016596,2]
[369032055,1751439044443,-490.0,0.00016596,2]
[369032056,1751439044453,-490.0,0.00016596,2]
[369032057,1751439044462,-869.89,0.00016596,2]
[369032058,1751439044471,-1063.1,0.00016596,2]
[369032059,1751439044480,-490.0,0.00016596,2]
[369032060,1751439044489,-613.83,0.00016596,2]
[369032061,1751439044498,-2585.16,0.00016596,2]
[369032062,1751439044507,-490.0,0.00016596,2]
[369032063,1751439044517,-490.0,0.00016596,2]
[369032064,1751439044526,-2144.73,0.00016596,2]
[369032065,1751439044536,-1672.33,0.00016596,2]
[369032066,1751439044546,-2954.79,0.00016596,2]
[369032067,1751439044555,-492.3783235,0.00016596,2]
[369032068,1751439044565,-2651.1,0.00016596,2]
[369032069,1751439044574,-1166.47,0.00016596,2]
[369032070,1751439044583,-859.89,0.00016596,2]
[369032071,1751439044592,-1338.99,0.00016596,2]
[369032072,1751439044602,-1794.36,0.00016596,2]
[369032073,1751439044612,-1216.94,0.00016596,2]
[369032074,1751439044623,-878.65,0.00016596,2]
[369032075,1751439044632,-490.0,0.00016596,2]
[369032076,1751439044642,-490.0,0.00016596,2]
[369032077,1751439044652,-1024.54,0.00016596,2]
[369032078,1751439044661,-1024.54,0.00016596,2]
[369032079,1751439044671,-1645.25,0.00016596,2]
[369032080,1751439044681,-1024.54,0.00016596,2]
[369032081,1751439044690,-490.0,0.00016596,2]
[369032082,1751439044700,-490.0,0.00016596,2]
[369032083,1751439044710,-820.75,0.00016596,2]
[369032084,1751439044719,-1265.73,0.00016596,2]
[369032085,1751439044730,-491.22402735,0.00016596,2]
[369032086,1751439044740,-490.0,0.00016596,2]
[369032087,1751439044750,-2936.75,0.00016596,2]
[369032088,1751439044759,-490.0,0.00016596,2]
[369032089,1751439044768,-1436.42,0.00016596,2]
[369032090,1751439044778,-2006.14,0.00016596,2]
[369032091,1751439044788,-491.01252193,0.00016596,2]
[369032092,1751439044797,-2333.54,0.00016596,2]
[369032093,1751439044807,-491.83236951,0.00016596,2]
[369032094,1751439044817,-1500.0,0.00016596,2]
[369032095,1751439044827,-490.0,0.00016596,2]
[369032096,1751439044837,-311.14814634,0.00016596,2]
[369032097,1751439044847,-490.0,0.00016596,2]
[369032098,1751439044857,-3781.75,0.00016596,2]
[369032099,1751439044866,-491.12553208,0.00016596,2]
[369032100,1751439044876,-1983.73,0.00016596,2]
[369032101,1751439044886,-2139.73,0.00016596,2]
[369032102,1751439044895,-490.93134817,0.00016596,2]
[369032103,1751439044904,-1283.37,0.00016596,2]
[369032104,1751439044914,-1319.55,0.00016596,2]
[369032105,1751439044923,-492.27569674,0.00016596,2]
[369032106,1751439044932,-497.25883159,0.00016596,2]
[369032107,1751439044942,-19106.29,0.00016596,2]
[369032108,1751439044951,-490.0,0.00016596,2]
[369032109,1751439044960,-490.0,0.00016596,2]
[369032110,1751439044970,-490.0,0.00016596,2]
[369032111,1751439044979,-490.0,0.00016596,2]
[369032112,1751439044988,-490.0,0.00016596,2]
[369032113,1751439044998,-490.0,0.00016596,2]
[369032114,1751439045007,-4363.86,0.00016596,2]
[369032115,1751439045016,-492.46967206,0.00016596,2]
[369032116,1751439045025,-1355.28,0.00016596,2]
[369032117,1751439045034,-490.99649631,0.00016596,2]
[369032118,1751439045043,-491.64151644,0.00016596,2]
[369032119,1751439045052,-1313.96,0.00016596,2]
[369032120,1751439045061,-789.53,0.00016596,2]
[369032121,1751439045070,-493.36143908,0.00016596,2]
[369032122,1751439045079,-3503.15,0.00016596,2]
[369032123,1751439045088,-494.03132762,0.00016596,2]
[369032124,1751439045097,-490.0,0.00016596,2]
[369032125,1751439045107,-2727.52,0.00016596,2]
[369032126,1751439045119,-1071.18,0.00016596,2]
[369032127,1751439045129,-495.4160937,0.00016596,2]
[369032128,1751439045138,-490.0,0.00016596,2]
[369032129,1751439045148,-490.0,0.00016596,2]
[369032130,1751439045158,-882.43,0.00016596,2]
[369032131,1751439045168,-972.62,0.00016596,2]
[369032132,1751439045177,-1526.82,0.00016596,2]
[369032133,1751439045187,-490.0,0.00016596,2]
[369032134,1751439045197,-505.41637345,0.00016596,2]
[369032135,1751439045206,-490.0,0.00016596,2]
[369032136,1751439045215,-1147.81,0.00016596,2]
[369032137,1751439045224,-490.0,0.00016596,2]
[369032138,1751439045233,-2721.84,0.00016596,2]
[369032139,1751439045243,-675.91,0.00016596,2]
[369032140,1751439045252,-491.68453782,0.00016596,2]
[369032141,1751439045261,-777.88,0.00016596,2]
[369032142,1751439045271,-490.0,0.00016596,2]
[369032143,1751439045280,-4107.53,0.00016596,2]
[369032144,1751439045289,-727.65,0.00016596,2]
[369032145,1751439045300,-1474.84,0.00016596,2]
[369032146,1751439045311,-2225.86,0.00016596,2]
[369032147,1751439045320,-490.0,0.00016596,2]
[369032148,1751439045329,-490.0,0.00016596,2]
[369032149,1751439045339,-6347.46,0.00016596,2]
[369032150,1751439045348,-490.0,0.00016597,2]
[369032151,1751439045358,-490.0,0.00016597,2]
[369032152,1751439045527,-490.0,0.00016597,2]
[369032153,1751439045538,-490.0,0.00016597,2]
[369032155,1751439045548,-493.50322292,0.00016597,2]
[369032156,1751439045558,-450.12152046,0.00016597,2]
[369032157,1751439045567,-566.64284291,0.00016597,2]
[369032158,1751439045576,-493.15834581,0.00016597,2]
[369032159,1751439045586,-490.0,0.00016597,2]
[369032160,1751439045595,-490.0,0.00016597,2]
[369032161,1751439045605,-490.0,0.00016597,2]
[369032162,1751439045614,-490.0,0.00016597,2]
[369032163,1751439045624,-483.74142745,0.00016597,2]
[369032164,1751439045634,-490.0,0.00016597,2]
[369032165,1751439045643,-490.0,0.00016597,2]
[369032166,1751439045653,-491.96915282,0.00016597,2]
[369032167,1751439045662,-490.0,0.00016597,2]
[369032168,1751439045672,-256.51493018,0.00016597,2]
[369032169,1751439045681,-492.470582,0.00016597,2]
[369032170,1751439045691,-492.16481323,0.00016597,2]
[369032171,1751439045700,-492.97866412,0.00016597,2]
[369032172,1751439045710,-490.0,0.00016597,2]
[369032173,1751439045719,-188.49207939,0.00016597,2]
[369032174,1751439045729,-491.53260839,0.00016597,2]
[369032175,1751439045738,-492.61437425,0.00016597,2]
[369032176,1751439045747,-490.0,0.00016597,2]
[369032177,1751439045756,-491.13099382,0.00016597,2]
[369032178,1751439045765,-490.0,0.00016597,2]
[369032179,1751439045775,-490.0,0.00016597,2]
[369032180,1751439045784,-492.88820657,0.00016597,2]
[369032181,1751439045793,-490.0,0.00016597,2]
[369032182,1751439045803,-491.56229309,0.00016597,2]
[369032183,1751439045812,-490.0,0.00016597,2]
[369032184,1751439045822,-490.0,0.00016597,2]
[369032185,1751439045832,-490.96060976,0.00016597,2]
[369032186,1751439045842,-491.76311432,0.00016597,2]
[369032187,1751439045851,-491.55428176,0.00016597,2]
[369032188,1751439045861,-494.01953559,0.00016597,2]
[369032189,1751439045870,-490.0,0.00016597,2]
[369032190,1751439045879,-492.67736095,0.00016597,2]
[369032191,1751439045888,-490.0,0.00016597,2]
[369032192,1751439045899,-338.08026863,0.00016597,2]
[369032193,1751439045908,-490.84382218,0.00016597,2]
[369032194,1751439045918,-491.54834247,0.00016597,2]
[369032195,1751439045927,-490.0,0.00016597,2]
[369032196,1751439045936,-490.0,0.00016597,2]
[369032197,1751439045945,-508.33126565,0.00016597,2]
[369032198,1751439045955,-490.0,0.00016597,2]
[369032199,1751439045964,-530.05045181,0.00016597,2]
[369032200,1751439045973,-490.0,0.00016597,2]
[369032201,1751439045983,-490.0,0.00016597,2]
[369032202,1751439045992,-606.96591246,0.00016597,2]
[369032203,1751439046002,-490.0,0.00016597,2]
[369032204,1751439046011,-492.56330341,0.00016597,2]
[369032205,1751439046021,-491.28663384,0.00016597,2]
[369032207,1751439046030,-493.67841453,0.00016597,2]
[369032208,1751439046039,-494.44789477,0.00016597,2]
[369032210,1751439046048,-490.0,0.00016597,2]
[369032212,1751439046058,-337.69990225,0.00016597,2]
[369032214,1751439046067,-490.0,0.00016597,2]
[369032216,1751439046076,-492.99975848,0.00016597,2]
[369032218,1751439046086,-490.0,0.00016597,2]
[369032220,1751439046095,-490.0,0.00016597,2]
[369032222,1751439046104,-490.0,0.00016597,2]
[369032224,1751439046117,-490.0,0.00016597,2]
[369032226,1751439046128,-440.08249058,0.00016597,2]
[369032228,1751439046138,-490.0,0.00016597,2]
[369032230,1751439046148,-490.0,0.00016597,2]
[369032232,1751439046158,-490.0,0.00016597,2]
[369032234,1751439046167,-546.54765397,0.00016597,2]
[369032236,1751439046176,-490.0,0.00016597,2]
[369032238,1751439046186,-490.0,0.00016597,2]
[369032240,1751439046196,-490.0,0.00016597,2]
[369032242,1751439046207,-490.0,0.00016597,2]
[369032244,1751439046216,-490.0,0.00016597,2]
[369032246,1751439046225,-492.07284998,0.00016597,2]
[369032248,1751439046234,-490.0,0.00016597,2]
[369032250,1751439046243,-490.0,0.00016597,2]
[369032252,1751439046252,-500.0,0.00016597,2]
[369032254,1751439046262,-500.0,0.00016597,2]
[369032256,1751439046271,-490.0,0.00016597,2]
[369032258,1751439046280,-490.0,0.00016597,2]
[369032260,1751439046289,-490.0,0.00016597,2]
[369032263,1751439046299,-275.6158287,0.00016597,2]
[369032265,1751439046309,-501.51216175,0.00016597,2]
[369032267,1751439046318,-490.0,0.00016597,2]
[369032268,1751439046327,-490.0,0.00016597,2]
[369032270,1751439046336,-336.31514939,0.00016597,2]
[369032273,1751439046346,-490.0,0.00016597,2]
[369032274,1751439046355,-490.0,0.00016597,2]
[369032277,1751439046365,-490.0,0.00016597,2]
[369032278,1751439046374,-490.0,0.00016597,2]
[369032280,1751439046384,-490.0,0.00016597,2]
[369032282,1751439046393,-490.0,0.00016597,2]
[369032284,1751439046403,-491.4481887,0.00016597,2]
[369032287,1751439046412,-490.0,0.00016597,2]
[369032288,1751439046421,-490.0,0.00016597,2]
[369032290,1751439046431,-490.0,0.00016597,2]
[369032292,1751439046440,-490.0,0.00016597,2]
[369032294,1751439046449,-490.0,0.00016597,2]
[369032296,1751439046458,-230.15360023,0.00016597,2]
[369032298,1751439046468,-490.0,0.00016597,2]
[369032301,1751439046477,-490.0,0.00016597,2]
[369032303,1751439046486,-490.0,0.00016597,2]
[369032304,1751439046496,-490.0,0.00016597,2]
[369032306,1751439046505,-490.0,0.00016597,2]
[369032308,1751439046514,-490.0,0.00016597,2]
[369032310,1751439046523,-490.0,0.00016597,2]
[369032312,1751439046533,-490.0,0.00016597,2]
[369032314,1751439046545,-490.71331129,0.00016597,2]
[369032316,1751439046554,-490.0,0.00016597,2]
[369032318,1751439046563,-802.16,0.00016597,2]
[369032320,1751439046572,-490.0,0.00016597,2]
[369032322,1751439046581,-491.5356403,0.00016597,2]
[369032324,1751439046590,-490.0,0.00016597,2]
[369032326,1751439046600,-490.0,0.00016597,2]
[369032328,1751439046609,-490.0,0.00016597,2]
[369032330,1751439046618,-490.0,0.00016597,2]
[369032332,1751439046628,-490.0,0.00016597,2]
[369032334,1751439046638,-490.0,0.00016597,2]
[369032336,1751439046647,-490.0,0.00016597,2]
[369032338,1751439046656,-490.0,0.00016597,2]
[369032340,1751439046665,-490.0,0.00016597,2]
[369032342,1751439046674,-490.0,0.00016597,2]
[369032344,1751439046683,-491.39359461,0.00016597,2]
[369032346,1751439046693,-490.0,0.00016597,2]
[369032348,1751439046702,-490.0,0.00016597,2]
[369032350,1751439046711,-491.49913383,0.00016597,2]
[369032352,1751439046721,-490.0,0.00016597,2]
[369032354,1751439046730,-156.18413397,0.00016597,2]
[369032356,1751439046739,-493.30617828,0.00016597,2]
[369032358,1751439046748,-490.0,0.00016597,2]
[369032360,1751439046758,-157.90079428,0.00016597,2]
[369032362,1751439046766,-490.0,0.00016597,2]
[369032364,1751439046775,-500.7699242,0.00016597,2]
[369032366,1751439046785,-490.0,0.00016597,2]
[369032368,1751439046794,-490.0,0.00016597,2]
[369032370,1751439046804,-490.0,0.00016597,2]
[369032372,1751439046813,-490.0,0.00016597,2]
[369032374,1751439046823,-490.0,0.00016597,2]
[369032376,1751439046832,-490.0,0.00016597,2]
[369032378,1751439046841,-490.0,0.00016597,2]
[369032380,1751439046850,-490.0,0.00016597,2]
[369032382,1751439046859,-490.0,0.00016597,2]
[369032384,1751439046869,-490.0,0.00016597,2]
[369032386,1751439046879,-490.0,0.00016597,2]
[369032388,1751439046888,-490.0,0.00016597,2]
[369032390,1751439046897,-490.0,0.00016597,2]
[369032392,1751439046907,-490.0,0.00016597,2]
[369032394,1751439046916,-490.0,0.00016597,2]
[369032395,1751439046925,-490.0,0.00016597,2]
[369032398,1751439046934,-490.0,0.00016597,2]
[369032399,1751439046943,-490.0,0.00016597,2]
[369032401,1751439046952,-491.04619103,0.00016597,2]
[369032403,1751439046961,-491.20600996,0.00016597,2]
[369032405,1751439046970,-667.95,0.00016597,2]
[369032407,1751439046980,-490.0,0.00016597,2]
[369032409,1751439046989,-490.0,0.00016597,2]
[369032411,1751439046998,-183.71565619,0.00016597,2]
[369032413,1751439047008,-490.0,0.00016597,2]
[369032415,1751439047017,-597.60751331,0.00016597,2]
[369032418,1751439047027,-490.0,0.00016597,2]
[369032419,1751439047036,-490.0,0.00016597,2]
[369032421,1751439047046,-490.0,0.00016597,2]
[369032423,1751439047055,-490.0,0.00016597,2]
[369032426,1751439047064,-490.0,0.00016597,2]
[369032427,1751439047073,-490.0,0.00016597,2]
[369032429,1751439047082,-490.0,0.00016597,2]
[369032432,1751439047092,-490.0,0.00016597,2]
[369032433,1751439047100,-490.0,0.00016597,2]
[369032435,1751439047111,-490.0,0.00016597,2]
[369032437,1751439047122,-490.0,0.00016597,2]
[369032439,1751439047131,-490.0,0.00016597,2]
[369032441,1751439047141,-490.0,0.00016597,2]
[369032443,1751439047150,-492.06023797,0.00016597,2]
[369032445,1751439047160,-427.89629238,0.00016597,2]
[369032447,1751439047170,-490.0,0.00016597,2]
[369032449,1751439047179,-490.0,0.00016597,2]
[369032451,1751439047190,-490.0,0.00016597,2]
[369032453,1751439047199,-491.07809599,0.00016597,2]
[369032455,1751439047208,-490.0,0.00016597,2]
[369032457,1751439047218,-490.0,0.00016597,2]
[369032459,1751439047231,-490.0,0.00016597,2]
[369032462,1751439047241,-490.0,0.00016597,2]
[369032463,1751439047250,-490.0,0.00016597,2]
[369032466,1751439047260,-490.0,0.00016597,2]
[369032468,1751439047269,-1026.42,0.00016597,2]
[369032470,1751439047279,-490.0,0.00016597,2]
[369032472,1751439047288,-437.07945334,0.00016597,2]
[369032474,1751439047297,-490.0,0.00016597,2]
[369032476,1751439047306,-490.76466587,0.00016597,2]
[369032477,1751439047315,-490.0,0.00016597,2]
[369032480,1751439047325,-490.0,0.00016597,2]
[369032482,1751439047335,-490.0,0.00016597,2]
[369032484,1751439047345,-490.0,0.00016597,2]
[369032486,1751439047356,-490.0,0.00016597,2]
[369032488,1751439047366,-490.0,0.00016597,2]
[369032490,1751439047376,-491.75712706,0.00016597,2]
[369032492,1751439047385,-490.0,0.00016597,2]
[369032493,1751439047394,-490.0,0.00016597,2]
[369032496,1751439047404,-490.0,0.00016597,2]
[369032498,1751439047413,-490.0,0.00016597,2]
[369032500,1751439047422,-490.0,0.00016597,2]
[369032502,1751439047432,-490.77739672,0.00016597,2]
[369032504,1751439047441,-490.0,0.00016597,2]
[369032506,1751439047450,-490.0,0.00016597,2]
[369032508,1751439047459,-490.0,0.00016597,2]
[369032510,1751439047469,-491.98346019,0.00016597,2]
[369032512,1751439047478,-491.53489723,0.00016597,2]
[369032513,1751439047488,-490.53947296,0.00016597,2]
[369032514,1751439047498,-684.77,0.00016597,2]
[369032515,1751439047507,-490.0,0.00016597,2]